fUSD/lending_fUSD_20240116
["ID","MTS","AMOUNT","RATE_DAILY","PERIOD"]
[311765232,1705381857880,-1353.56,0.000227,2]
[311765233,1705381857889,-1347.93,0.000227,2]
[311765234,1705381857898,-500.0,0.000227,2]
[311765235,1705381857908,-1125.59,0.000227,2]
[311765236,1705381857917,-511.38,0.000227,2]
[311765237,1705381857926,-500.0,0.000227,2]
[311765238,1705381857936,-500.0,0.000227,2]
[311765239,1705381857946,-500.0,0.000227,2]
[311765240,1705381857956,-731.58,0.000227,2]
[311765241,1705381857965,-500.0,0.000227,2]
[311765242,1705381857975,-500.0,0.000227,2]
[311765243,1705381857984,-500.0,0.000227,2]
[311765244,1705381857994,-523.68,0.000227,2]
[311765245,1705381858003,-1797.16,0.000227,2]
[311765246,1705381858013,-2055.38,0.000227,2]
[311765247,1705381858022,-500.0,0.000227,2]
[311765248,1705381858031,-500.0,0.000227,2]
[311765249,1705381858041,-5380.53,0.000227,2]
[311765250,1705381858051,-1545.18,0.000227,2]
[311765251,1705381858060,-624.74,0.000227,2]
[311765252,1705381858071,-887.81,0.000227,2]
[311765253,1705381858081,-500.0,0.000227,2]
[311765254,1705381858091,-500.0,0.000227,2]
[311765255,1705381858100,-500.0,0.000227,2]
[311765256,1705381858110,-1174.33,0.000227,2]
[311765257,1705381858119,-1288.39,0.000227,2]
[311765258,1705381858129,-500.0,0.000227,2]
[311765259,1705381858138,-682.33,0.000227,2]
[311765260,1705381858271,-500.0,0.000227,2]
[311765261,1705381858281,-500.0,0.000227,2]
[311765262,1705381858291,-1243.2,0.000227,2]
[311765263,1705381858301,-2870.84,0.000227,2]
[311765264,1705381858310,-1096.28,0.000227,2]
[311765265,1705381858321,-500.0,0.000227,2]
[311765266,1705381858330,-1440.25,0.000227,2]
[311765267,1705381858339,-500.0,0.000227,2]
[311765268,1705381858348,-2400.88,0.000227,2]
[311765269,1705381858358,-3566.92,0.000227,2]
[311765270,1705381858367,-2663.23,0.000227,2]
[311765271,1705381858377,-615.0,0.000227,2]
[311765272,1705381858387,-828.26,0.000227,2]
[311765273,1705381858398,-500.0,0.000227,2]
[311765274,1705381858410,-744.1,0.000227,2]
[311765275,1705381858419,-500.0,0.000227,2]
[311765276,1705381858429,-500.0,0.000227,2]
[311765277,1705381858439,-565.38,0.000227,2]
[311765278,1705381858450,-500.0,0.000227,2]
[311765279,1705381858459,-1199.24,0.000227,2]
[311765280,1705381858470,-829.71,0.000227,2]
[311765281,1705381858481,-500.0,0.000227,2]
[311765282,1705381858491,-314.52,0.000227,2]
[311765283,1705381858500,-775.69,0.000227,2]
[311765284,1705381858510,-500.0,0.000227,2]
[311765285,1705381858519,-946.48,0.000227,2]
[311765286,1705381858529,-500.0,0.000227,2]
[311765287,1705381858539,-592.32,0.000227,2]
[311765288,1705381858549,-2090.72,0.000227,2]
[311765289,1705381858559,-500.0,0.000227,2]
[311765290,1705381858570,-2155.89,0.000227,2]
[311765291,1705381858580,-500.0,0.000227,2]
[311765292,1705381858590,-2109.7,0.000227,2]
[311765293,1705381858600,-500.0,0.000227,2]
[311765294,1705381858609,-1702.15,0.000227,2]
[311765295,1705381858619,-1218.96,0.000227,2]
[311765296,1705381858629,-1137.2,0.000227,2]
[311765297,1705381858639,-500.0,0.000227,2]
[311765298,1705381858649,-914.1,0.000227,2]
[311765299,1705381858659,-500.0,0.000227,2]
[311765300,1705381858669,-793.93,0.000227,2]
[311765301,1705381858678,-500.0,0.000227,2]
[311765302,1705381858687,-500.0,0.000227,2]
[311765303,1705381858697,-1602.94,0.000227,2]
[311765304,1705381858706,-1041.83,0.000227,2]
[311765305,1705381858716,-500.0,0.000227,2]
[311765306,1705381858726,-500.0,0.000227,2]
[311765307,1705381858735,-1024.65,0.000227,2]
[311765308,1705381858745,-678.17,0.000227,2]
[311765309,1705381858754,-500.0,0.000227,2]
[311765310,1705381858763,-905.8,0.000227,2]
[311765311,1705381858773,-1007.72,0.000227,2]
[311765312,1705381858782,-528.35,0.000227,2]
[311765313,1705381858791,-500.0,0.000227,2]
[311765314,1705381858801,-3109.12,0.000227,2]
[311765315,1705381858810,-3322.61,0.000227,2]
[311765316,1705381858820,-9975.05,0.000227,2]
[311765317,1705381858829,-2276.11,0.000227,2]
[311765318,1705381858840,-1273.92,0.000227,2]
[311765319,1705381858849,-500.0,0.000227,2]
[311765320,1705381858859,-1343.23,0.000227,2]
[311765321,1705381858868,-737.46,0.000227,2]
[311765322,1705381858877,-500.0,0.000227,2]
[311765323,1705381858887,-500.0,0.000227,2]
[311765324,1705381858897,-947.77,0.000227,2]
[311765325,1705381858907,-500.0,0.000227,2]
[311765326,1705381858916,-1063.66,0.000227,2]
[311765327,1705381858926,-570.24,0.000227,2]
[311765328,1705381858935,-711.8,0.000227,2]
[311765329,1705381858945,-1629.71,0.000227,2]
[311765330,1705381858954,-811.88,0.000227,2]
[311765331,1705381858964,-1568.29,0.000227,2]
[311765332,1705381858973,-829.72,0.000227,2]
[311765333,1705381858983,-686.15,0.000227,2]
[311765334,1705381858992,-2016.84,0.000227,2]
[311765335,1705381859001,-1266.23,0.000227,2]
[311765336,1705381859010,-668.69,0.000227,2]
[311765337,1705381859020,-500.0,0.000227,2]
[311765338,1705381859029,-500.0,0.000227,2]
[311765339,1705381859039,-500.0,0.000227,2]
[311765340,1705381859048,-1170.76,0.000227,2]
[311765341,1705381859058,-2266.46,0.000227,2]
[311765342,1705381859067,-554.86,0.000227,2]
[311765343,1705381859077,-500.0,0.000227,2]
[311765344,1705381859086,-500.0,0.000227,2]
[311765345,1705381859095,-915.11,0.000227,2]
[311765346,1705381859105,-500.0,0.000227,2]
[311765347,1705381859114,-2073.37,0.000227,2]
[311765348,1705381859123,-3287.57,0.000227,2]
[311765349,1705381859133,-611.35,0.000227,2]
[311765350,1705381859142,-643.47943585,0.000227,2]
[311765351,1705381859152,-500.0,0.000227,2]
[311765352,1705381859161,-500.0,0.000227,2]
[311765353,1705381859171,-500.0,0.000227,2]
[311765354,1705381859180,-3996.24,0.000227,2]
[311765355,1705381859191,-1617.87,0.000227,2]
[311765356,1705381859200,-4562.45,0.000227,2]
[311765357,1705381859210,-4653.39,0.000227,2]
[311765358,1705381859219,-500.0,0.000227,2]
[311765359,1705381859229,-2665.15,0.000227,2]
[311765360,1705381859238,-500.0,0.000227,2]
[311765361,1705381859247,-1128.23,0.000227,2]
[311765362,1705381859257,-500.0,0.000227,2]
[311765363,1705381859267,-500.0,0.000227,2]
[311765364,1705381859276,-680.53,0.000227,2]
[311765365,1705381859286,-5773.0,0.000227,2]
[311765366,1705381859296,-850.46,0.000227,2]
[311765367,1705381859305,-526.93,0.000227,2]
[311765368,1705381859315,-742.6,0.00022701,2]
[311765369,1705381859325,-500.0,0.00022701,2]
[311765370,1705381859334,-500.0,0.00022701,2]
[311765371,1705381859344,-500.0,0.00022701,2]
[311765372,1705381859354,-500.0,0.00022701,2]
[311765373,1705381859363,-500.0,0.00022701,2]
[311765374,1705381859373,-500.0,0.00022701,2]
[311765375,1705381859383,-500.0,0.00022701,2]
[311765376,1705381859392,-521.34,0.00022701,2]
[311765377,1705381859402,-500.0,0.00022701,2]
[311765378,1705381859412,-500.0,0.00022701,2]
[311765379,1705381859421,-500.0,0.00022701,2]
[311765380,1705381859430,-500.0,0.00022701,2]
[311765381,1705381859440,-500.0,0.00022701,2]
[311765382,1705381859449,-500.0,0.00022701,2]
[311765383,1705381859459,-500.0,0.00022701,2]
[311765384,1705381859469,-500.0,0.00022701,2]
[311765385,1705381859479,-595.41,0.00022701,2]
[311765386,1705381859488,-500.0,0.00022701,2]
[311765387,1705381859497,-500.0,0.00022701,2]
[311765388,1705381859506,-500.0,0.00022701,2]
[311765389,1705381859516,-500.0,0.00022701,2]
[311765390,1705381859525,-500.0,0.00022701,2]
[311765391,1705381859535,-500.0,0.00022701,2]
[311765392,1705381859544,-250.0,0.00022701,2]
[311765393,1705381859554,-506.9,0.00022701,2]
[311765394,1705381859563,-500.0,0.00022701,2]
[311765395,1705381859574,-500.0,0.00022701,2]
[311765396,1705381859583,-561.84,0.00022701,2]
[311765397,1705381859594,-500.0,0.00022701,2]
[311765398,1705381859603,-500.0,0.00022701,2]
[311765399,1705381859613,-500.0,0.00022701,2]
[311765400,1705381859622,-621.66,0.00022701,2]
[311765401,1705381859632,-519.43,0.00022701,2]
[311765402,1705381859642,-500.0,0.00022701,2]
[311765403,1705381859651,-500.0,0.00022701,2]
[311765404,1705381859661,-500.0,0.00022701,2]
[311765405,1705381859670,-506.79,0.00022701,2]
[311765406,1705381859681,-522.16,0.00022701,2]
[311765407,1705381859690,-624.36,0.00022701,2]
[311765408,1705381859700,-500.0,0.00022701,2]
[311765409,1705381859710,-791.67,0.00022701,2]
[311765410,1705381859720,-500.0,0.00022701,2]
[311765411,1705381859729,-500.0,0.00022701,2]
[311765412,1705381859739,-886.28,0.00022701,2]
[311765413,1705381859749,-500.0,0.00022701,2]
[311765414,1705381859759,-500.0,0.00022701,2]
[311765415,1705381859769,-500.0,0.00022701,2]
[311765416,1705381859779,-500.0,0.00022701,2]
[311765417,1705381859789,-500.0,0.00022701,2]
[311765418,1705381859800,-500.0,0.00022701,2]
[311765419,1705381859809,-876.14,0.00022701,2]
[311765420,1705381859821,-733.19,0.00022701,2]
[311765421,1705381859831,-678.2,0.00022701,2]
[311765422,1705381859840,-521.16,0.00022701,2]
[311765423,1705381859850,-548.41,0.00022701,2]
[311765424,1705381859859,-500.0,0.00022701,2]
[311765425,1705381859869,-541.43,0.00022701,2]
[311765426,1705381859879,-500.0,0.00022701,2]
[311765427,1705381859889,-500.0,0.00022701,2]
[311765428,1705381859899,-500.0,0.00022701,2]
[311765429,1705381859909,-500.0,0.00022701,2]
[311765430,1705381859919,-500.0,0.00022701,2]
[311765431,1705381859928,-564.33,0.00022701,2]
[311765432,1705381859938,-500.0,0.00022701,2]
[311765433,1705381859947,-554.58,0.00022701,2]
[311765434,1705381859957,-899.16,0.00022701,2]
[311765435,1705381859966,-500.0,0.00022701,2]
[311765436,1705381859977,-500.0,0.00022701,2]
[311765437,1705381859987,-500.0,0.00022701,2]
[311765438,1705381859997,-500.0,0.00022701,2]
[311765439,1705381860007,-500.0,0.00022701,2]
[311765440,1705381860017,-811.85,0.00022701,2]
[311765441,1705381860027,-757.23,0.00022701,2]
[311765442,1705381860037,-311.24,0.00022701,2]
[311765443,1705381860047,-500.0,0.00022701,2]
[311765444,1705381860059,-601.66,0.00022701,2]
[311765445,1705381860070,-500.0,0.00022701,2]
[311765446,1705381860080,-500.0,0.00022701,2]
[311765447,1705381860090,-554.81,0.00022701,2]
[311765448,1705381860101,-709.24,0.00022701,2]
[311765449,1705381860112,-496.56033181,0.00022701,2]
[311765450,1705381860122,-507.13206061,0.00022701,2]
[311765451,1705381860132,-500.0,0.00022701,2]
[311765452,1705381860141,-500.0,0.00022701,2]
[311765453,1705381860152,-578.53,0.00022701,2]
[311765454,1705381860162,-500.0,0.00022701,2]
[311765455,1705381860172,-501.37,0.00022701,2]
[311765456,1705381860182,-715.14,0.00022701,2]
[311765457,1705381860192,-500.0,0.00022701,2]
[311765458,1705381860202,-2310.1,0.00022701,2]
[311765459,1705381860211,-500.0,0.00022701,2]
[311765460,1705381860221,-615.05,0.00022701,2]
[311765461,1705381860230,-500.0,0.00022701,2]
[311765462,1705381860240,-464.13007643,0.00022701,2]
[311765463,1705381860249,-1275.86,0.00022701,2]
[311765464,1705381860259,-500.0,0.00022701,2]
[311765465,1705381860268,-825.3,0.00022701,2]
[311765466,1705381860277,-500.0,0.00022701,2]
[311765467,1705381860287,-199.29867303,0.00022701,2]
[311765468,1705381860297,-500.0,0.00022701,2]
[311765469,1705381860307,-500.0,0.00022701,2]
[311765470,1705381860318,-500.0,0.00022701,2]
[311765471,1705381860328,-709.32,0.00022701,2]
[311765472,1705381860337,-500.0,0.00022701,2]
[311765473,1705381860348,-712.98,0.00022701,2]
[311765474,1705381860358,-500.0,0.00022701,2]
[311765475,1705381860368,-902.82,0.00022701,2]
[311765476,1705381860378,-599.29,0.00022701,2]
[311765477,1705381860387,-500.0,0.00022701,2]
[311765478,1705381860723,-647.36,0.00022701,2]
[311765479,1705381860733,-500.0,0.00022701,2]
[311765480,1705381860742,-1098.0,0.00022701,2]
[311765481,1705381860752,-656.09,0.00022701,2]
[311765482,1705381860761,-907.08,0.00022701,2]
[311765483,1705381860771,-1021.14,0.00022701,2]
[311765484,1705381860780,-500.0,0.00022701,2]
[311765485,1705381860790,-500.0,0.00022701,2]
[311765486,1705381860800,-500.0,0.00022701,2]
[311765487,1705381860810,-500.0,0.00022701,2]
[311765488,1705381860820,-500.0,0.00022701,2]
[311765489,1705381860830,-776.67,0.00022701,2]
[311765490,1705381860840,-500.0,0.00022701,2]
[311765491,1705381860849,-500.0,0.00022701,2]
[311765492,1705381860859,-578.04,0.00022701,2]
[311765493,1705381860869,-1043.11,0.00022701,2]
[311765494,1705381860878,-756.41,0.00022701,2]
[311765495,1705381860888,-621.91,0.00022701,2]
[311765496,1705381860897,-541.26,0.00022701,2]
[311765497,1705381860907,-848.69,0.00022701,2]
[311765498,1705381860917,-649.66,0.00022701,2]
[311765499,1705381860927,-500.0,0.00022701,2]
[311765500,1705381860937,-500.0,0.00022701,2]
[311765501,1705381860947,-2425.03,0.00022701,2]
[311765502,1705381860957,-1653.97,0.00022701,2]
[311765503,1705381860966,-751.4,0.00022701,2]
[311765504,1705381860976,-631.62,0.00022701,2]
[311765505,1705381860985,-500.0,0.00022701,2]
[311765506,1705381860995,-936.47,0.00022701,2]
[311765507,1705381861005,-2415.37,0.00022701,2]
[311765508,1705381861014,-500.0,0.00022701,2]
[311765509,1705381861023,-656.19,0.00022701,2]
[311765510,1705381861033,-598.36,0.00022701,2]
[311765511,1705381861043,-2583.39,0.00022701,2]
[311765512,1705381861053,-500.0,0.00022701,2]
[311765513,1705381861062,-601.3,0.00022701,2]
[311765514,1705381861072,-500.0,0.00022701,2]
[311765515,1705381861082,-947.06,0.00022701,2]
[311765516,1705381861092,-381.57487848,0.00022701,2]
[311765517,1705381861102,-1022.66,0.00022701,2]
[311765518,1705381861111,-300.0,0.00022701,2]
[311765519,1705381861122,-658.45,0.00022701,2]
[311765520,1705381861131,-500.0,0.00022701,2]
[311765521,1705381861141,-549.01,0.00022701,2]
[311765522,1705381861151,-1061.94,0.00022701,2]
[311765523,1705381861161,-606.71,0.00022701,2]
[311765524,1705381861170,-500.0,0.00022701,2]
[311765525,1705381861180,-500.0,0.00022701,2]
[311765526,1705381861190,-586.85,0.00022701,2]
[311765527,1705381861199,-500.0,0.00022701,2]
[311765528,1705381861209,-500.0,0.00022701,2]
[311765529,1705381861218,-1638.65,0.00022701,2]
[311765530,1705381861228,-500.0,0.00022701,2]
[311765531,1705381861238,-1628.02,0.00022701,2]
[311765532,1705381861248,-500.0,0.00022701,2]
[311765533,1705381861259,-500.0,0.00022701,2]
[311765534,1705381861269,-531.82515984,0.00022701,5]
[311765535,1705381861280,-509.22,0.00022701,2]
[311765536,1705381861290,-639.05,0.00022701,2]
[311765537,1705381861301,-2712.04,0.00022701,2]
[311765538,1705381861312,-500.0,0.00022701,2]
[311765539,1705381861325,-500.0,0.00022701,2]
[311765540,1705381861335,-500.0,0.00022701,2]
[311765541,1705381861348,-2480.33,0.00022701,2]
[311765542,1705381861359,-516.89,0.00022701,2]
[311765543,1705381861370,-500.0,0.00022701,2]
[311765544,1705381861380,-500.0,0.00022701,2]
[311765545,1705381861391,-754.1,0.00022701,2]
[311765546,1705381861401,-802.02,0.00022701,2]
[311765547,1705381861412,-549.93,0.00022701,2]
[311765548,1705381861423,-1028.74,0.00022701,2]
[311765549,1705381861434,-500.0,0.00022701,2]
[311765550,1705381861445,-511.94,0.00022701,2]
[311765551,1705381861455,-1754.91,0.00022701,2]
[311765552,1705381861466,-1636.06,0.00022701,2]
[311765553,1705381861476,-500.0,0.00022701,2]
[311765554,1705381861486,-500.0,0.00022701,2]
[311765555,1705381861496,-500.0,0.00022701,2]
[311765556,1705381861506,-653.52,0.00022701,2]
[311765557,1705381861516,-500.0,0.00022701,2]
[311765558,1705381861526,-615.47,0.00022701,2]
[311765559,1705381861536,-649.11,0.00022701,2]
[311765560,1705381861546,-619.34,0.00022701,2]
[311765561,1705381861556,-1093.11,0.00022701,2]
[311765562,1705381861569,-623.73,0.00022701,2]
[311765563,1705381861579,-500.0,0.00022701,2]
[311765564,1705381861589,-1202.07,0.00022701,2]
[311765565,1705381861599,-1026.67,0.00022701,2]
[311765566,1705381861609,-605.81,0.00022701,2]
[311765567,1705381861619,-500.0,0.00022701,2]
[311765568,1705381861628,-500.0,0.00022701,2]
[311765569,1705381861638,-3136.79,0.00022701,2]
[311765570,1705381861647,-500.0,0.00022701,2]
[311765571,1705381861657,-1394.1,0.00022701,2]
[311765572,1705381861667,-500.0,0.00022701,2]
[311765573,1705381861677,-570.27,0.00022701,2]
[311765574,1705381861686,-998.76,0.00022701,2]
[311765575,1705381861696,-500.0,0.00022701,2]
[311765576,1705381861706,-500.0,0.00022701,2]
[311765577,1705381861717,-1481.2,0.00022701,2]
[311765578,1705381861726,-500.0,0.00022701,2]
[311765579,1705381861736,-500.0,0.00022701,2]
[311765580,1705381861746,-500.0,0.00022701,2]
[311765581,1705381861755,-838.48,0.00022701,2]
[311765582,1705381861765,-799.52,0.00022701,2]
[311765583,1705381861775,-858.26,0.00022701,2]
[311765584,1705381861785,-500.0,0.00022701,2]
[311765585,1705381861796,-500.0,0.00022701,2]
[311765586,1705381861806,-500.0,0.00022701,2]
[311765587,1705381861815,-500.0,0.00022701,2]
[311765588,1705381861826,-637.74,0.00022701,2]
[311765589,1705381861836,-841.37,0.00022701,2]
[311765590,1705381861845,-1121.13,0.00022701,2]
[311765591,1705381861854,-500.0,0.00022701,2]
[311765592,1705381861862,-500.0,0.00022701,2]
[311765593,1705381861872,-627.31,0.00022701,2]
[311765594,1705381861882,-620.07,0.00022701,2]
[311765595,1705381861892,-657.92,0.00022701,2]
[311765596,1705381861902,-2260.98,0.00022701,2]
[311765597,1705381861913,-500.0,0.00022701,2]
[311765598,1705381861923,-617.7,0.00022701,2]
[311765599,1705381861933,-757.49,0.00022701,2]
[311765600,1705381861943,-500.0,0.00022701,2]
[311765601,1705381861952,-1225.31,0.00022701,2]
[311765602,1705381861962,-500.0,0.00022701,2]
[311765603,1705381861972,-836.33,0.00022701,2]
[311765604,1705381861982,-567.6,0.00022701,2]
[311765605,1705381861992,-500.0,0.00022701,2]
[311765606,1705381862002,-663.31,0.00022701,2]
[311765607,1705381862012,-500.0,0.00022702,2]
[311765608,1705381862022,-560.1,0.00022702,2]
[311765609,1705381862032,-500.0,0.00022702,2]
[311765610,1705381862043,-1023.06,0.00022702,2]
[311765611,1705381862053,-734.11,0.00022702,2]
[311765612,1705381862062,-664.46,0.00022702,2]
[311765613,1705381862074,-648.47,0.00022702,2]
[311765614,1705381862083,-500.0,0.00022702,2]
[311765615,1705381862093,-507.75,0.00022702,2]
[311765616,1705381862103,-500.0,0.00022702,2]
[311765617,1705381862113,-510.85,0.00022702,2]
[311765618,1705381862123,-500.0,0.00022702,2]
[311765619,1705381862133,-500.0,0.00022702,2]
[311765620,1705381862143,-500.0,0.00022702,2]
[311765621,1705381862153,-672.64,0.00022702,2]
[311765622,1705381862163,-1047.32,0.00022702,2]
[311765623,1705381862173,-572.36,0.00022702,2]
[311765624,1705381862183,-655.47,0.00022702,2]
[311765625,1705381862193,-809.61,0.00022702,2]
[311765626,1705381862203,-948.72,0.00022702,2]
[311765627,1705381862212,-1096.64,0.00022702,2]
[311765628,1705381862223,-500.0,0.00022702,2]
[311765629,1705381862232,-500.0,0.00022702,2]
[311765630,1705381862241,-600.02,0.00022702,2]
[311765631,1705381862250,-323.7,0.00022702,2]
[311765632,1705381862259,-500.0,0.00022702,2]
[311765633,1705381862269,-1035.24,0.00022702,2]
[311765634,1705381862278,-608.4,0.00022702,2]
[311765635,1705381862288,-815.49,0.00022702,2]
[311765636,1705381862297,-500.0,0.00022702,2]
[311765637,1705381862307,-1026.51,0.00022702,2]
[311765638,1705381862318,-747.33,0.00022702,2]
[311765639,1705381862327,-435.86,0.00022702,2]
[311765640,1705381862337,-955.55,0.00022702,2]
[311765641,1705381862347,-1132.1,0.00022702,2]
[311765642,1705381862357,-710.92,0.00022702,2]
[311765643,1705381862367,-699.79,0.00022702,2]
[311765644,1705381862377,-606.44,0.00022702,2]
[311765645,1705381862387,-1485.76,0.00022702,2]
[311765646,1705381862397,-885.93,0.00022702,2]
[311765647,1705381862412,-500.0,0.00022702,2]
[311765648,1705381862422,-1089.12,0.00022702,2]
[311765649,1705381862432,-581.66,0.00022702,2]
[311765650,1705381862443,-524.73,0.00022702,2]
[311765651,1705381862452,-927.61,0.00022702,2]
[311765652,1705381862462,-576.34,0.00022702,2]
[311765653,1705381862472,-2647.28,0.00022702,2]
[311765654,1705381862484,-902.0,0.00022702,2]
[311765655,1705381862494,-2566.87,0.00022702,2]
[311765656,1705381862504,-1010.37,0.00022702,2]
[311765657,1705381862513,-614.55,0.00022702,2]
[311765658,1705381862523,-814.01,0.00022702,2]
[311765659,1705381862532,-724.0,0.00022702,2]
[311765660,1705381862551,-648.1,0.00022702,2]
[311765661,1705381862562,-537.02,0.00022702,2]
[311765662,1705381862572,-500.0,0.00022702,2]
[311765663,1705381862582,-591.26,0.00022702,2]
[311765664,1705381862592,-500.0,0.00022702,2]
[311765665,1705381862602,-685.84,0.00022702,2]
[311765666,1705381862611,-500.0,0.00022702,2]
[311765667,1705381862621,-500.0,0.00022702,2]
[311765668,1705381862631,-689.0,0.00022703,2]
[311765669,1705381862641,-500.0,0.00022703,2]
[311765670,1705381862651,-500.0,0.00022703,2]
[311765671,1705381862660,-500.0,0.00022703,2]
[311765672,1705381862670,-500.0,0.00022703,2]
[311765673,1705381862680,-500.0,0.00022703,2]
[311765674,1705381862689,-500.0,0.00022703,2]
[311765675,1705381862699,-500.0,0.00022703,2]
[311765676,1705381862708,-500.0,0.00022703,2]
[311765677,1705381862718,-500.0,0.00022703,2]
[311765678,1705381862727,-520.08,0.00022703,2]
[311765679,1705381862737,-500.0,0.00022703,2]
[311765680,1705381862746,-500.0,0.00022703,2]
[311765681,1705381862756,-544.16,0.00022703,2]
[311765682,1705381862765,-500.0,0.00022703,2]
[311765683,1705381862775,-505.56,0.00022703,2]
[311765684,1705381862785,-500.0,0.00022703,2]
[311765685,1705381862795,-500.0,0.00022703,2]
[311765686,1705381862805,-500.0,0.00022703,2]
[311765687,1705381862814,-500.0,0.00022703,2]
[311765688,1705381862825,-500.0,0.00022703,2]
[311765689,1705381862834,-500.0,0.00022703,2]
[311765690,1705381862843,-631.83,0.00022703,2]
[311765691,1705381862852,-500.0,0.00022703,2]
[311765692,1705381862862,-500.0,0.00022703,2]
[311765693,1705381862871,-500.0,0.00022703,2]
[311765694,1705381862881,-500.0,0.00022703,2]
[311765695,1705381862891,-688.48,0.00022703,2]
[311765696,1705381862900,-364.09798948,0.00022703,2]
[311765697,1705381862910,-500.0,0.00022703,2]
[311765698,1705381862919,-500.0,0.00022703,2]
[311765699,1705381862929,-500.0,0.00022703,2]
[311765700,1705381862939,-500.0,0.00022703,2]
[311765701,1705381862949,-500.0,0.00022703,2]
[311765702,1705381862958,-500.0,0.00022703,2]
[311765703,1705381862967,-518.89,0.00022703,2]
[311765704,1705381862977,-546.88,0.00022703,2]
[311765705,1705381862987,-509.44,0.00022703,2]
[311765706,1705381862997,-641.28552639,0.00022703,2]
[311765707,1705381863006,-1087.13,0.00022703,2]
[311765708,1705381863015,-566.66896451,0.00022703,2]
[311765709,1705381863024,-500.0,0.00022703,2]
[311765710,1705381863035,-500.0,0.00022703,2]
[311765711,1705381863044,-581.43,0.00022703,2]
[311765712,1705381863054,-500.0,0.00022703,2]
[311765713,1705381863063,-989.28,0.00022703,2]
[311765714,1705381863074,-500.0,0.00022703,2]
[311765715,1705381863084,-504.53,0.00022703,2]
[311765716,1705381863093,-455.94544068,0.00022703,2]
[311765717,1705381863102,-535.28,0.00022703,2]
[311765718,1705381863112,-500.0,0.00022703,2]
[311765719,1705381863121,-500.0,0.00022703,2]
[311765720,1705381863266,-500.0,0.00022703,2]
[311765721,1705381863275,-500.0,0.00022703,2]
[311765722,1705381863285,-500.0,0.00022703,2]
[311765723,1705381863295,-1109.89,0.00022703,2]
[311765724,1705381863304,-500.0,0.00022703,2]
[311765725,1705381863313,-500.0,0.00022703,2]
[311765726,1705381863323,-500.0,0.00022703,2]
[311765727,1705381863334,-507.53,0.00022703,2]
[311765728,1705381863343,-928.94,0.00022703,2]
[311765729,1705381863353,-500.0,0.00022703,2]
[311765730,1705381863362,-500.0,0.00022703,2]
[311765731,1705381863371,-500.0,0.00022703,2]